bitfinex/quotes_SOLUSD_20220210
["timestamp","ask_amount","ask_price","bid_price","bid_amount"]
[1644506039154,4.503,111.07,110.93,48.75245637]
[1644506039354,4.503,111.07,110.94,4.503]
[1644506039555,4.503,111.07,110.95,45.7859225]
[1644506039758,4.503,111.13,110.96,10.67]
[1644506040058,15.172,111.16,110.97,47.74784132]
[1644506040255,4.502,111.16,110.99,46.28634221]
[1644506040456,44.60909864,111.19,111.0,24.1744]
[1644506040655,4.501,111.19,111.03,0.32143366]
[1644506040856,15.93399864,111.22,111.05,0.30750171]
[1644506041058,15.93399864,111.22,111.05,50.03470657]
[1644506041264,15.93399864,111.22,111.05,49.75120486]
[1644506041461,6.73022154,111.21,111.05,49.75120486]
[1644506041760,27.7087896,111.2,111.05,50.00120486]
[1644506041972,4.499,111.19,111.05,50.00120486]
[1644506042162,6.73022154,111.19,111.05,49.75120486]
[1644506042363,6.73022154,111.19,111.05,10.694]
[1644506042564,18.16522018,111.18,111.05,0.024]
[1644506042761,4.499,111.17,111.04,0.25]
[1644506042962,10.67,111.16,111.02,0.024]
[1644506043163,4.5,111.15,110.99,0.024]
[1644506043366,30.57733532,111.16,110.99,0.024]
[1644506043563,37.56124115,111.14,110.94,0.024]
[1644506043763,10.67,111.13,110.98,0.024]
[1644506043963,4.502,111.12,110.93,93.764]
[1644506044165,10.67,111.11,110.93,10.694]
[1644506044367,24.4335,111.11,110.93,30.2063]
[1644506044575,4.503,111.1,110.94,35.29771931]
[1644506044767,10.67,111.09,110.95,0.024]
[1644506044967,4.503,111.08,110.95,0.024]
[1644506045171,2.23122154,111.09,110.96,45.54307394]
[1644506045367,24.183,111.11,110.96,51.56707394]
[1644506045569,24.183,111.11,110.96,51.54307394]
[1644506045768,24.183,111.11,110.97,0.024]
[1644506046173,6.73322154,111.1,110.97,0.024]
[1644506046368,24.1864,111.09,110.96,45.54307394]
[1644506046575,10.67,111.09,110.96,45.54307394]
[1644506047170,10.67,111.09,110.96,51.54307394]
[1644506047570,10.67,111.09,110.96,45.54307394]
[1644506047969,10.92,111.09,110.96,45.54307394]
[1644506048169,4.503,111.08,110.94,0.024]
[1644506048371,15.423,111.08,110.94,0.024]
[1644506048571,2.23122154,111.07,110.94,0.024]
[1644506048770,0.25,111.07,110.94,0.024]
[1644506048970,10.67,111.06,110.94,0.024]
[1644506049170,17.40422154,111.06,110.92,45.27129382]
[1644506049371,32.54924251,111.06,110.92,45.27129382]
[1644506049571,48.48324115,111.06,110.92,45.27129382]
[1644506049771,44.87639864,111.06,110.92,45.27129382]
[1644506049972,10.92,111.06,110.92,45.27129382]
[1644506050172,0.25,111.06,110.92,51.27129382]
[1644506050573,10.92,111.09,110.92,51.27129382]
[1644506050776,10.67,111.09,110.93,0.024]
[1644506050979,10.67,111.09,110.95,34.98765207]
[1644506051178,4.503,111.08,110.95,35.01165207]
[1644506051481,10.67,111.07,110.95,34.98765207]
[1644506051876,10.67,111.07,110.92,0.024]
[1644506052082,4.503,111.06,110.92,0.024]
[1644506052306,10.98710171,111.05,110.91,0.024]
[1644506052505,4.505,111.04,110.89,0.024]
[1644506052707,10.67,111.03,110.89,0.024]
[1644506053008,10.67,111.02,110.89,42.75622637]
[1644506053205,10.67,111.02,110.9,0.024]
[1644506053406,10.92,111.02,110.89,47.59424744]
[1644506053606,10.92,111.02,110.89,41.59424744]
[1644506053807,10.92,111.02,110.89,41.09424744]
[1644506054011,10.67,111.02,110.89,42.25622637]
[1644506054208,10.67,111.05,110.9,1.16197893]
[1644506054407,10.67,111.05,110.9,1.43597893]
[1644506054610,10.67,111.05,110.93,37.72152874]
[1644506054808,15.176,111.08,110.93,43.97152874]
[1644506055008,40.19420769,111.1,110.95,48.26086067]
[1644506055308,4.503,111.09,110.96,0.024]
[1644506055509,15.81170769,111.1,110.96,0.024]
[1644506055709,4.503,111.12,110.95,55.6728396]
[1644506055911,50.77802154,111.13,110.96,1.18597893]
[1644506056115,4.503,111.11,110.97,48.60701757]
[1644506056310,48.5468,111.13,110.97,54.85701757]
[1644506056509,4.502,111.12,110.97,68.36551757]
[1644506056711,48.5468,111.13,110.98,0.024]
[1644506057210,77.37472573,111.13,110.98,0.024]
[1644506057412,4.502,111.12,110.98,0.024]
[1644506057612,94.65350419,111.13,110.98,0.024]
[1644506058014,2.23122154,111.12,110.98,0.024]
[1644506058414,16.67,111.13,110.98,1.18597893]
[1644506058614,6.0,111.13,110.99,59.34736136]
[1644506058815,6.0,111.13,110.99,65.59736136]
[1644506059313,4.502,111.15,110.99,66.75934029]
[1644506059512,24.6873,111.16,111.0,0.024]
[1644506059717,24.6873,111.16,111.01,10.67]
[1644506059916,4.501,111.19,111.02,36.2583308]
[1644506060114,4.501,111.19,111.03,10.694]
[1644506060315,36.16222573,111.19,111.04,52.04521668]
[1644506060622,2.23122154,111.19,111.04,49.21481668]
[1644506060817,7.3904383,111.22,111.04,149.20481668]
[1644506061018,2.23122154,111.22,111.06,46.36890363]
[1644506061213,5.76402063,111.29,111.08,43.26073617]
[1644506061415,15.72132154,111.29,111.15,44.78287533]
[1644506061618,4.495,111.28,111.15,44.78287533]
[1644506061816,18.15792573,111.28,111.15,44.80687533]
[1644506062217,18.15792573,111.28,111.15,50.80687533]
[1644506062218,15.92670419,111.28,111.15,50.80687533]
[1644506062420,15.92670419,111.27,111.15,0.024]
[1644506062617,10.67,111.26,111.14,0.024]
[1644506062818,26.47277028,111.26,111.11,0.024]
[1644506063018,36.22647447,111.25,111.08,0.024]
[1644506063222,10.67,111.24,111.08,4.521]
[1644506063420,49.5001,111.23,111.09,0.024]
[1644506063618,76.09680419,111.23,111.09,0.024]
[1644506063826,31.09470419,111.23,111.09,0.024]
[1644506064018,15.168,111.23,111.09,0.024]
[1644506064221,10.67,111.23,111.09,0.024]
[1644506064418,15.168,111.26,111.13,13.4905]
[1644506064618,77.24052063,111.31,111.14,47.25522494]
[1644506064619,10.67,111.29,111.14,47.25522494]
[1644506064820,4.496,111.3,111.15,0.024]
[1644506065019,10.67,111.31,111.17,44.79078911]
[1644506065220,4.494,111.3,111.17,44.81478911]
[1644506065419,22.65192573,111.3,111.17,44.79078911]
[1644506065619,15.92670419,111.3,111.17,44.79078911]
[1644506065921,15.92670419,111.3,111.17,45.04078911]
[1644506066118,21.92670419,111.3,111.17,44.79078911]
[1644506066319,2.23122154,111.29,111.17,44.79078911]
[1644506066519,4.495,111.28,111.17,44.79078911]
[1644506066721,15.92670419,111.28,111.13,4.519]
[1644506066919,14.1145425,111.27,111.14,0.024]
[1644506067119,14.1145425,111.27,111.13,4.519]
[1644506067319,12.90122154,111.27,111.13,4.519]
[1644506067522,10.67,111.27,111.13,4.519]
[1644506067720,10.67,111.27,111.14,37.75156679]
[1644506067922,10.67,111.27,111.15,4.496]
[1644506068125,10.67,111.27,111.16,39.05238945]
[1644506068323,12.90122154,111.27,111.15,0.024]
[1644506068531,4.495,111.26,111.14,0.024]
[1644506068724,4.495,111.26,111.1,13.4935]
[1644506068725,10.67,111.26,111.11,0.024]
[1644506068924,4.497,111.25,111.12,4.497]
[1644506069126,4.497,111.25,111.11,0.024]
[1644506069325,4.497,111.25,111.11,42.28426697]
[1644506069326,0.25,111.25,111.11,42.28426697]
[1644506069733,0.25,111.25,111.12,13.4913]
[1644506069926,0.25,111.25,111.13,47.73240154]
[1644506070328,6.25,111.27,111.13,53.98240154]
[1644506070629,0.25,111.27,111.13,47.73240154]
[1644506070828,15.166,111.26,111.13,53.73240154]
[1644506071031,10.67,111.26,111.13,53.73240154]
[1644506071229,10.67,111.26,111.13,47.73240154]
[1644506071430,2.23122154,111.25,111.13,47.73240154]
[1644506071628,10.67,111.24,111.13,47.73240154]
[1644506071829,13.5003,111.21,111.13,47.73240154]
[1644506072429,13.7503,111.21,111.13,47.73240154]
[1644506072730,0.25,111.21,111.13,47.73240154]
[1644506072929,13.493,111.25,111.13,47.73240154]
[1644506073730,13.493,111.25,111.13,47.98240154]
[1644506074432,19.493,111.25,111.13,47.98240154]
[1644506074833,19.493,111.25,111.13,53.98240154]
[1644506075035,19.493,111.25,111.13,47.73240154]
[1644506075235,13.4963,111.22,111.1,0.024]
[1644506075435,10.67,111.21,111.08,0.024]
[1644506075837,10.92,111.21,111.08,0.024]
[1644506076039,10.92,111.21,111.08,13.5209]
[1644506076239,10.92,111.21,111.08,54.05735715]
[1644506076438,0.25,111.21,111.08,54.05735715]
[1644506076738,0.25,111.21,111.08,64.72735715]
[1644506076937,58.1721,111.24,111.08,64.72735715]
[1644506077140,58.1721,111.24,111.1,13.4941]
[1644506077339,58.1721,111.24,111.11,42.17480364]
[1644506077540,62.6691,111.24,111.11,42.19880364]
[1644506077739,68.6691,111.24,111.11,42.19880364]
[1644506078240,13.4958,111.23,111.11,42.19880364]
[1644506078461,4.497,111.22,111.11,42.17480364]
[1644506078662,10.67,111.21,111.08,0.024]
[1644506078860,4.498,111.2,111.08,0.024]
[1644506079061,4.498,111.2,111.07,6.0]
[1644506079062,10.67,111.19,111.07,6.0]
[1644506079260,4.499,111.18,111.05,0.024]
[1644506079660,4.749,111.18,111.05,0.024]
[1644506079861,4.749,111.18,111.05,44.52302918]
[1644506080262,12.90122154,111.17,111.05,50.52302918]
[1644506080463,4.5,111.16,111.05,50.52302918]
[1644506080665,15.17,111.16,111.05,44.49902918]
[1644506080863,15.42,111.16,111.05,44.49902918]
[1644506081264,15.17,111.16,111.05,44.49902918]
[1644506081463,15.72822154,111.21,111.05,44.49902918]
[1644506081662,13.497,111.21,111.06,0.024]
[1644506081862,13.497,111.21,111.06,10.694]
[1644506082063,13.497,111.21,111.07,38.78059144]
[1644506082264,13.497,111.21,111.07,55.72459144]
[1644506082664,13.497,111.21,111.09,13.4959]
[1644506082865,13.747,111.21,111.1,39.95429154]
[1644506083265,13.747,111.21,111.1,46.20429154]
[1644506083665,13.747,111.21,111.1,45.95429154]
[1644506083868,13.747,111.21,111.1,46.20429154]
[1644506084066,42.9248,111.23,111.1,46.20429154]
[1644506084265,42.9248,111.23,111.12,44.35404637]
[1644506084266,13.4943,111.23,111.12,44.35404637]
[1644506084466,4.497,111.26,111.12,44.35404637]
[1644506084667,102.355,111.28,111.12,44.35404637]
[1644506084868,4.496,111.28,111.14,40.67283421]
[1644506085067,11.93602063,111.31,111.16,44.10236614]
[1644506085269,2.23122154,111.3,111.16,44.35236614]
[1644506085467,13.4879,111.28,111.16,57.58996614]
[1644506085668,24.6079,111.28,111.16,44.10236614]
[1644506085868,21.04100359,111.27,111.11,0.024]
[1644506086069,21.04100359,111.27,111.08,5.65697893]
[1644506086070,10.67,111.26,111.08,0.024]
[1644506086270,23.8619,111.29,111.11,93.74]
[1644506086271,35.79792063,111.29,111.11,93.74]
[1644506086471,34.5319,111.29,111.12,15.166]
[1644506086668,39.2779,111.29,111.12,10.67]
[1644506086867,27.80438205,111.28,111.13,46.57334239]
[1644506087067,4.496,111.27,111.13,46.57334239]
[1644506087268,10.67,111.26,111.13,46.57334239]
[1644506087467,24.98478205,111.26,111.13,46.57334239]
[1644506087968,10.92,111.26,111.13,46.57334239]
[1644506088169,10.92,111.26,111.13,52.57334239]
[1644506088572,4.496,111.25,111.13,52.57334239]
[1644506088770,0.25,111.25,111.13,66.06504239]
[1644506088971,0.25,111.25,111.13,52.57334239]
[1644506089370,11.93602063,111.29,111.13,52.57334239]
[1644506089572,1.26602063,111.3,111.15,39.33004803]
[1644506089772,0.25,111.29,111.15,45.58004803]
[1644506090073,25.92242063,111.32,111.21,43.41257581]
[1644506090074,30.41742063,111.32,111.21,43.41257581]
[1644506090273,26.17242063,111.32,111.21,43.66257581]
[1644506090473,0.25,111.32,111.21,43.66257581]
[1644506090669,0.25,111.32,111.21,49.66257581]
[1644506091277,1.26602063,111.36,111.22,15.163]
[1644506091482,1.26602063,111.37,111.23,42.76273945]
[1644506091676,1.26602063,111.38,111.25,37.86832507]
[1644506091876,1.26602063,111.39,111.27,46.82574385]
[1644506092075,1.26602063,111.4,111.32,13.4688]
[1644506092275,1.26602063,111.42,111.33,37.27833168]
[1644506092475,1.26602063,111.43,111.33,37.27833168]
[1644506092974,1.26602063,111.43,111.23,157.5508]
[1644506092975,1.26602063,111.41,111.28,10.67]
[1644506093174,14.73952063,111.41,111.27,10.67]
[1644506093374,4.49,111.4,111.27,6.0]
[1644506093575,5.75602063,111.4,111.27,6.0]
[1644506093775,8.23724217,111.4,111.28,39.35967309]
[1644506093976,1.51602063,111.4,111.28,45.35967309]
[1644506094175,0.25,111.4,111.28,45.35967309]
[1644506094378,25.40842063,111.42,111.28,45.35967309]
[1644506094574,62.48884874,111.44,111.29,15.16]
[1644506094575,1.26602063,111.43,111.29,15.16]
[1644506094774,1.26602063,111.44,111.3,46.42758729]
[1644506094976,5.75502063,111.45,111.3,57.09758729]
[1644506095175,19.32656937,111.45,111.3,57.09758729]
[1644506095375,2.23122154,111.43,111.3,46.42758729]
[1644506095575,13.4718,111.42,111.3,46.42758729]
[1644506095774,4.489,111.41,111.3,46.42758729]
[1644506095975,2.23122154,111.43,111.3,46.42758729]
[1644506096175,1.26602063,111.44,111.31,15.159]
[1644506096375,1.26602063,111.47,111.32,38.38943141]
[1644506096681,13.468,111.46,111.32,38.38943141]
[1644506096876,4.488,111.45,111.32,38.38943141]
[1644506097078,10.67,111.44,111.28,4.488]
[1644506097277,4.489,111.43,111.28,4.488]
[1644506097477,0.45,111.41,111.28,4.488]
[1644506097676,15.16,111.4,111.28,4.488]
[1644506097976,31.7057147,111.4,111.29,48.48313299]
[1644506098176,13.57154874,111.39,111.29,48.48313299]
[1644506098377,15.16,111.38,111.28,4.488]
[1644506098578,17.39122154,111.38,111.2,72.2958]
[1644506098778,97.26238657,111.38,111.18,44.9363]
[1644506098979,2.23122154,111.37,111.18,44.9363]
[1644506099180,10.67,111.36,111.19,4.493]
[1644506099377,10.67,111.36,111.22,13.4793]
[1644506099581,10.67,111.36,111.23,4.492]
[1644506099880,10.67,111.36,111.24,44.19686044]
[1644506100079,4.492,111.35,111.24,44.19686044]
[1644506100280,10.67,111.36,111.24,44.44686044]
[1644506100480,10.67,111.36,111.24,44.19686044]
[1644506100678,10.92,111.36,111.24,44.19686044]
[1644506100878,24.4004,111.36,111.24,44.19686044]
[1644506101080,10.67,111.36,111.24,44.19686044]
[1644506101285,4.492,111.4,111.24,50.19686044]
[1644506101481,4.492,111.41,111.25,15.162]
[1644506101684,4.491,111.45,111.26,40.72864586]
[1644506101979,348.36206069,111.46,111.28,38.38747556]
[1644506101980,347.09604006,111.46,111.28,38.38747556]
[1644506102180,4.49,111.48,111.29,10.67]
[1644506102379,4.49,111.48,111.3,36.14951665]
[1644506102579,4.49,111.48,111.31,10.67]
[1644506102778,10.67,111.47,111.32,48.41492787]
[1644506102980,17.9561,111.46,111.32,48.41492787]
[1644506103378,30.85732154,111.46,111.32,48.41492787]
[1644506103584,50.47882433,111.46,111.32,48.41492787]
[1644506103780,47.25684496,111.46,111.32,48.41492787]
[1644506103982,32.41927559,111.46,111.32,48.41492787]
[1644506104183,54.25536344,111.46,111.32,48.41492787]
[1644506104582,26.36932154,111.46,111.32,48.41492787]
[1644506104783,24.1381,111.46,111.32,48.41492787]
[1644506104985,138.4381,111.46,111.32,48.41492787]
[1644506105183,127.7681,111.46,111.32,59.08492787]
[1644506105383,114.3,111.46,111.32,65.33492787]
[1644506105783,114.55,111.46,111.32,65.33492787]
[1644506106083,0.25,111.46,111.32,65.33492787]
[1644506106285,0.25,111.46,111.34,13.4651]
[1644506106486,0.25,111.46,111.35,45.1977147]
[1644506106885,120.5481419,111.49,111.34,13.4651]
[1644506107085,21.85272433,111.46,111.3,10.67]
[1644506107287,129.459,111.45,111.24,10.67]
[1644506107487,0.45,111.43,111.25,13.4764]
[1644506107686,15.16,111.42,111.25,13.4764]
[1644506107886,0.45,111.4,111.26,45.80161647]
[1644506108085,0.45,111.36,111.19,10.67]
[1644506108285,13.4839,111.33,111.16,83.0979]
[1644506108486,13.4839,111.33,111.16,84.73828773]
[1644506108686,18.2279,111.33,111.16,90.73828773]
[1644506108888,18.2279,111.33,111.2,13.482]
[1644506109087,2.66272189,111.24,111.21,39.89367321]
[1644506109390,0.25,111.33,111.23,48.26149506]
[1644506109787,23.0721,111.36,111.23,48.51149506]
[1644506110087,56.0447,111.38,111.23,48.51149506]
[1644506110286,1.26602063,111.43,111.25,93.74]
[1644506110489,7.297,111.45,111.26,63.00170794]
[1644506110689,7.297,111.45,111.26,64.64209567]
[1644506110989,20.7659,111.45,111.28,47.21226538]
[1644506111188,7.297,111.45,111.3,38.68513012]
[1644506111388,7.297,111.45,111.32,37.74696617]
[1644506111588,7.297,111.45,111.34,35.73738098]
[1644506111789,7.297,111.45,111.34,52.65738098]
[1644506111992,7.297,111.45,111.36,44.85579152]
[1644506112391,7.297,111.45,111.33,4.488]
[1644506112789,13.547,111.45,111.33,4.488]
[1644506112991,15.77822154,111.45,111.33,4.488]
[1644506113195,13.4711,111.43,111.33,4.488]
[1644506113392,0.25,111.43,111.34,38.47711298]
[1644506114493,7.297,111.45,111.34,38.47711298]
[1644506114691,7.297,111.45,111.34,38.72711298]
[1644506115293,7.297,111.45,111.34,43.21511298]
[1644506115491,7.297,111.45,111.34,49.21511298]
[1644506115695,7.297,111.45,111.35,13.4641]
[1644506115892,7.297,111.45,111.36,36.50128458]
[1644506116290,7.297,111.45,111.36,36.75128458]
[1644506116493,7.297,111.45,111.36,136.49128458]
[1644506116692,7.297,111.45,111.37,4.488]
[1644506116892,7.297,111.45,111.39,43.63797035]
[1644506117097,1.06302063,111.51,111.39,43.63797035]
[1644506117293,1.06302063,111.51,111.39,49.88797035]
[1644506117493,50.0612,111.53,111.39,49.88797035]
[1644506117692,2.23122154,111.51,111.39,49.88797035]
[1644506117894,2.23122154,111.51,111.4,13.4576]
[1644506118093,4.486,111.52,111.41,36.52138097]
[1644506118292,118.09689999,111.58,111.41,36.52138097]
[1644506118293,6.99689616,111.58,111.42,10.67]
[1644506118494,6.99689616,111.58,111.43,43.7156046]
[1644506118693,4.484,111.57,111.43,54.3856046]
[1644506118894,2.23122154,111.58,111.43,60.6356046]
[1644506119096,2.51189616,111.59,111.45,42.08801225]
[1644506119297,2.51189616,111.59,111.46,10.67]
[1644506119499,2.51189616,111.59,111.47,35.15289454]
[1644506119729,12.71422154,111.59,111.47,35.15289454]
[1644506120095,13.4536,111.58,111.47,35.15289454]
[1644506120294,6.0,111.59,111.47,35.40289454]
[1644506120495,6.0,111.59,111.47,35.15289454]
[1644506120795,4.46294,111.58,111.47,35.15289454]
[1644506120997,2.51189616,111.6,111.47,35.15289454]
[1644506121196,15.4131177,111.61,111.47,35.15289454]
[1644506121396,22.48793692,111.6,111.47,35.15289454]
[1644506121599,13.4533,111.58,111.44,10.67]
[1644506121796,13.4533,111.58,111.43,13.4548]
[1644506121797,4.483,111.57,111.42,74.8328]
[1644506121997,114.3,111.56,111.42,74.8328]
[1644506122199,4.484,111.55,111.41,10.67]
[1644506122396,29.41071538,111.55,111.38,35.5292]
[1644506122599,31.89193692,111.55,111.39,43.82301408]
[1644506122896,6.96522154,111.55,111.4,24.1283]
[1644506123098,130.26969616,111.56,111.41,41.97671638]
[1644506123296,127.7578,111.56,111.41,47.97671638]
[1644506123502,127.7578,111.56,111.42,10.67]
[1644506123697,127.7578,111.56,111.43,37.34633423]
[1644506123897,4.484,111.55,111.43,37.34633423]
[1644506124397,4.484,111.55,111.43,43.59633423]
[1644506124800,4.484,111.55,111.43,43.34633423]
[1644506125097,10.484,111.55,111.43,37.34633423]
[1644506125296,12.96522154,111.55,111.43,37.34633423]
[1644506125499,12.96522154,111.55,111.39,56.8154]
[1644506125699,36.46691505,111.55,111.39,23.1743]
[1644506125899,38.97881121,111.55,111.39,23.1743]
[1644506126102,23.94075553,111.55,111.39,23.1743]
[1644506126299,4.484,111.55,111.4,10.67]
[1644506126501,72.2194,111.58,111.41,36.74024697]
[1644506126802,49.3305,111.6,111.42,10.67]
[1644506126998,44.8465,111.6,111.43,43.09394255]
[1644506127222,44.8465,111.6,111.44,10.67]
[1644506127406,31.92261154,111.61,111.47,44.79554122]
[1644506127600,13.4502,111.6,111.47,44.79554122]
[1644506127899,23.2118,111.62,111.47,51.04554122]
[1644506128101,0.22,111.62,111.47,52.68641478]
[1644506128300,0.22,111.62,111.48,10.67]
[1644506128501,0.22,111.62,111.49,46.59474129]
[1644506129002,0.22,111.62,111.49,52.84474129]
[1644506129403,0.22,111.62,111.51,41.32659537]
[1644506129602,0.22,111.62,111.55,36.76927654]
[1644506130203,0.22,111.62,111.55,37.01927654]
[1644506130405,0.22,111.62,111.55,43.01927654]
[1644506130609,0.22,111.62,111.55,60.68927654]
[1644506130803,0.22,111.62,111.55,36.76927654]
[1644506131707,0.22,111.62,111.53,13.4425]
[1644506131905,15.89872154,111.62,111.48,15.15]
[1644506132110,26.88338977,111.62,111.44,87.14]
[1644506132305,18.73871538,111.61,111.44,87.14]
[1644506132508,37.59348638,111.61,111.44,76.47]
[1644506132707,24.67270792,111.6,111.45,36.61014786]
[1644506132904,15.47272903,111.59,111.45,36.61014786]
[1644506133106,114.3,111.58,111.45,36.61014786]
[1644506133313,10.92,111.58,111.45,36.61014786]
[1644506134204,13.15122154,111.58,111.45,36.61014786]
[1644506134405,13.4508,111.59,111.45,42.61014786]
[1644506134605,13.4508,111.59,111.47,46.25411801]
[1644506134805,22.8099,111.61,111.49,47.22073754]
[1644506135208,2.23122154,111.6,111.49,47.22073754]
[1644506135410,13.454,111.59,111.49,47.22073754]
[1644506135805,15.68522154,111.59,111.49,47.22073754]
[1644506136005,13.454,111.59,111.49,47.22073754]
[1644506137808,13.704,111.59,111.49,47.22073754]
[1644506139010,13.454,111.59,111.49,47.22073754]
[1644506139210,36.2582,111.61,111.49,47.22073754]
[1644506139410,0.22,111.62,111.49,140.96073754]
[1644506139614,0.22,111.62,111.49,157.63073754]
[1644506139809,0.22,111.62,111.5,44.8126]
[1644506140008,0.22,111.62,111.51,141.82137768]
[1644506140210,0.22,111.62,111.51,48.08137768]
[1644506140610,2.23122154,111.61,111.51,37.41137768]
[1644506141012,0.25,111.61,111.51,37.41137768]
[1644506142313,47.81859616,111.62,111.46,10.67]
[1644506142513,6.71422154,111.6,111.42,45.8559]
[1644506142714,10.67,111.59,111.4,10.67]
[1644506142915,0.32107678,111.54,111.35,72.0348]
[1644506143115,0.30135411,111.5,111.33,44.8785]
[1644506143414,45.2073106,111.47,111.24,22.6689]
[1644506143614,0.45,111.44,111.27,13.4747]
[1644506143814,15.16,111.43,111.24,22.6689]
[1644506144014,29.86671538,111.43,111.24,22.6689]
[1644506144216,42.40853444,111.43,111.25,46.82144206]
[1644506144415,0.25,111.43,111.25,48.45818558]
[1644506144614,13.7265,111.43,111.33,42.35380867]
[1644506145215,4.489,111.42,111.33,42.35380867]
[1644506145418,0.25,111.43,111.28,10.67]
[1644506145715,13.4727,111.41,111.25,13.4765]
[1644506145914,15.161,111.4,111.25,13.4765]
[1644506146119,4.491,111.4,111.25,1.63674352]
[1644506146415,4.491,111.4,111.26,34.26947438]
[1644506146416,0.25,111.4,111.26,34.26947438]
[1644506146815,13.4731,111.4,111.27,13.4739]
[1644506147016,13.4731,111.4,111.27,1.63674352]
[1644506147215,13.4731,111.4,111.28,45.22289718]
[1644506147416,17.9631,111.4,111.28,45.22289718]
[1644506147617,28.6331,111.4,111.28,45.22289718]
[1644506148019,17.9631,111.4,111.28,60.3322407]
[1644506148219,13.4731,111.4,111.28,58.69549718]
[1644506148515,13.4731,111.4,111.28,58.94549718]
[1644506148717,13.4731,111.4,111.28,58.69549718]
[1644506149317,13.4731,111.4,111.24,10.67]
[1644506149517,17.84222154,111.39,111.2,144.0374]
[1644506149737,13.483,111.34,111.17,10.67]
[1644506149936,44.9434,111.35,111.17,10.67]
[1644506149937,4.494,111.33,111.17,10.67]
[1644506150138,11.12,111.33,111.13,29.31516244]
[1644506150337,4.495,111.32,111.18,47.03548305]
[1644506150539,15.165,111.32,111.18,47.03548305]
[1644506150740,15.71672154,111.31,111.14,1.64239618]
[1644506150938,15.165,111.3,111.13,25.94520886]
[1644506151239,15.165,111.3,111.13,31.94520886]
[1644506151440,15.415,111.3,111.13,31.94520886]
[1644506151740,15.415,111.3,111.14,44.28667118]
[1644506151939,13.4904,111.29,111.14,44.28667118]
[1644506152140,10.67,111.28,111.14,50.53667118]
[1644506152339,10.67,111.28,111.15,1.64239618]
[1644506152538,0.25,111.28,111.16,43.04034914]
[1644506152741,0.25,111.28,111.16,49.29034914]
[1644506152938,0.25,111.28,111.16,50.93269579]
[1644506153340,13.739,111.28,111.16,50.68269579]
[1644506153639,4.495,111.27,111.16,49.04034914]
[1644506153939,10.67,111.3,111.16,49.04034914]
[1644506154240,10.67,111.33,111.16,61.35269579]
[1644506154443,24.1523,111.33,111.16,83.29965955]
[1644506154641,13.4823,111.33,111.16,83.54965955]
[1644506154843,24.1523,111.33,111.16,68.27445069]
[1644506155241,33.5798,111.37,111.18,48.64499384]
[1644506155442,10.67,111.37,111.2,38.35374322]
[1644506155644,10.67,111.37,111.22,36.39483556]
[1644506155842,24.1476,111.37,111.23,13.4776]
[1644506156042,4.492,111.38,111.22,42.64483556]
[1644506156242,10.67,111.41,111.24,42.56199782]
[1644506156442,10.67,111.46,111.25,15.161]
[1644506156645,10.67,111.47,111.26,44.71376345]
[1644506156844,13.4677,111.46,111.32,13.4668]
[1644506157043,13.4677,111.46,111.3,44.8872]
[1644506157044,13.4677,111.46,111.33,42.76947099]
[1644506157244,72.4521,111.48,111.33,49.01947099]
[1644506157443,24.1466,111.48,111.34,1.64241511]
[1644506157645,24.1466,111.48,111.36,35.41716776]
[1644506157845,77.2323,111.53,111.38,40.84904691]
[1644506158044,15.69212154,111.51,111.37,4.487]
[1644506158247,15.156,111.5,111.37,4.487]
[1644506158646,2.23122154,111.49,111.37,4.487]
[1644506158846,2.48122154,111.49,111.37,4.487]
[1644506159046,4.487,111.48,111.37,4.487]